Cogmind - Beta 9.1 @@@ ROGUE MODE // 2019.10.31 @ 16:25:03 // Halloween2019/Abominations Player: SHADOWELITE7 Result: Core destroyed Performance ------------- Evolutions (0) 0 Regions Visited (1) 200 Robots Destroyed (8) 40 Value Destroyed (325) 325 Prototype IDs (0) 0 Alien Tech Used (0) 0 Bonus (0) 0 TOTAL SCORE: 565 Bonus ------- None Cogmind --------- Core Integrity 0/250 Matter 300/300 Energy 250/250 System Corruption 0% Temperature Cool (0) Location -10/Materials Parts ------- Power (1) Ion Engine Propulsion (2) Utility (2) Medium Storage Unit Terrain Scan Processor Weapon (2) Light Cannon Inventory (8) Light Ion Engine Small Laser Small Laser Small Laser Peak State ------------ Power Ion Engine Propulsion Light Treads Light Treads Utility Small Storage Unit Terrain Scan Processor Weapon Light Cannon Grenade Launcher Inventory Light Ion Engine Small Laser Small Laser Small Laser [Rating: 8] Favorites ----------- Power Ion Engine Engine Ion Engine Propulsion Light Treads Treads Light Treads Utility Small Storage Unit Storage Small Storage Unit Processor Terrain Scan Processor Weapon Light Cannon Energy Gun Small Laser Ballistic Cannon Light Cannon Launcher Grenade Launcher Build | -11 -10 ------- Run | Scr Mat Slots Evolved . | . . Power . | . . Propulsion . | . . Utility . | . . Weapon . | . . Parts Attached 11 | 5 6 Power 1 | 1 . Engine 1 | 1 . Core . | . . Reactor . | . . Propulsion 2 | 2 . Treads 2 | 2 . Leg . | . . Wheel . | . . Hover . | . . Flight . | . . Utility 3 | 1 2 Device . | . . Storage 2 | 1 1 Processor 1 | . 1 Hackware . | . . Protection . | . . Artifact . | . . Weapon 5 | 1 4 Energy Gun 1 | 1 . Energy Cannon . | . . Ballistic Gun . | . . Ballistic Cannon 2 | . 2 Launcher 2 | . 2 Special Weapon . | . . Impact Weapon . | . . Slashing Weapon . | . . Piercing Weapon . | . . Special Melee Weapon . | . . Unidentified Prototypes . | . . Parts Lost 1 | . 1 Power . | . . Propulsion . | . . Utility . | . . Weapon 1 | . 1 Highest Loss Streak 1 | . 1 Average Slot Usage (%) 79 | . 79 Engine 14 | . 14 Treads 18 | . 18 Storage 14 | . 14 Processor 5 | . 5 Ballistic Cannon 13 | . 13 Launcher 12 | . 12 Naked Turns . | . . Heaviest Build 19 | 10 19 Greatest Support 40 | 40 40 Greatest Overweight (x) 6 | . 6 Average Overweight (x) 1 | . 2 Largest Inventory Capacity 8 | 6 8 Average Capacity 6 | 4 6 Most Carried 6 | 4 6 Average Carried 4 | 1 4 Final Capacity 8 | 6 8 Final Carried 4 | 3 4 Class Distribution -------------------- 100% | Mutant Dominant Class ---------------- Mutant | -10/Materials Resources | -11 -10 ----------- Run | Scr Mat Matter Collected 444 | 231 213 Remotely . | . . Salvage Created 228 | . 228 Parts 20 | . 20 Haulers Intercepted . | . . Recyclers Shooed . | . . Parts Field Recycled . | . . Retrieved Matter . | . . Parts Self-Destructed . | . . Prevented . | . . Kills | -11 -10 ------- Run | Scr Mat Combat Hostiles Destroyed 7 | . 7 Cannons 4 | . 4 AOE 3 | . 3 Classes Destroyed 3 | . 3 Builder 1 | . 1 Swarmer 3 | . 3 Abomination 4 | . 4 Best Kill Streak 4 | . 4 Combat Bots Only 3 | . 3 Max Kills in Single Turn 2 | . 2 Gunslinging . | . . Exploded 1 | . 1 Melee . | . . Uniques/NPCs Destroyed . | . . Combat | -11 -10 -------- Run | Scr Mat Damage Taken 704 | . 704 Core 275 | . 275 Absorbed by Shields . | . . Core Remaining (%) 100 | 100 . Volleys Fired 11 | . 11 Largest 2 | . 2 Hottest 65 | . 65 Shots Fired 20 | . 20 Gun . | . . Cannon 11 | . 11 Launcher 9 | . 9 Special . | . . Kinetic 11 | . 11 Thermal . | . . Explosive 9 | . 9 Electromagnetic . | . . Robot Hit Streak 4 | . 4 Robot Miss Streak 1 | . 1 Penetration Max . | . . Secondary Targets . | . . Shots Hit Robots 11 | . 11 Core Hits 16 | . 16 Critical Hits . | . . Critical Kills . | . . Critical Parts Destroyed . | . . Melee Attacks . | . . Impact . | . . Slashing . | . . Piercing . | . . Sneak Attacks . | . . Combat Hostiles . | . . Follow-up Attacks . | . . Damage Inflicted 438 | . 438 Guns . | . . Cannons 102 | . 102 Explosions 336 | . 336 Melee . | . . Ramming . | . . Kinetic 102 | . 102 Thermal . | . . Explosive 336 | . 336 Electromagnetic . | . . Impact . | . . Slashing . | . . Piercing . | . . Highest Corruption . | . . Average Corruption . | . . Corruption Purged . | . . Overload Shots . | . . Overflow Damage 6 | . 6 Projectiles . | . . Explosions 6 | . 6 Melee . | . . Knockbacks 1 | . 1 Impact . | . . Kinetic 1 | . 1 Secondary . | . . Self-Inflicted Damage 22 | . 22 Shots 1 | . 1 Rammed . | . . Targets Rammed . | . . Kicked . | . . Crushed . | . . Highest Temperature 811 | . 811 Average Temperature 261 | . 261 Received Heat Transfer . | . . Effects 24 | . 24 Shutdowns 4 | . 4 Energy Bleed 1 | . 1 Interference 4 | . 4 Matter Decay 3 | . 3 Short Circuit 2 | . 2 Damage (minor) 2 | . 2 Damage (major) 3 | . 3 Damage (core) 5 | . 5 Siege Activations . | . . Robots Corrupted . | . . Combat Hostiles . | . . Parts Fried . | . . Impact Corruptions . | . . Robots Melted . | . . Combat Hostiles . | . . Parts Melted . | . . Heat Transferred . | . . Parts Sabotaged . | . . Parts Stolen . | . . Parts Stripped . | . . Power Chain Reactions . | . . Missiles Intercepted . | . . Alert | -11 -10 ------- Run | Scr Mat Peak Influence 124 | . 124 Average Influence 28 | . 32 Maximum Alert Level . | . . Low Security (%) 100 | . . Level 1 . | . . Level 2 . | . . Level 3 . | . . Level 4 . | . . Level 5 . | . . High Security . | . . Max Security . | . . Squads Dispatched 5 | . 5 Investigation 2 | . 2 Extermination . | . . Reinforcement 2 | . 2 Assault 1 | . 1 Garrison . | . . Intercept . | . . Construction Impeded . | . . Haulers Reinforced . | . . Stealth | -11 -10 --------- Run | Scr Mat Distress Signals . | . . Communications Jammed . | . . Distress Signals . | . . Times Spotted 8 | . 8 Peak Tracking Total 3 | . 3 Tactical Retreats . | . . Traps | -11 -10 ------- Run | Scr Mat Traps Triggered . | . . Indirectly . | . . Trap Hack Attempts . | . . Triggered . | . . Disarmed . | . . Reprogrammed . | . . Reused . | . . Traps Extracted . | . . Installed . | . . Triggered . | . . Machines | -11 -10 ---------- Run | Scr Mat Machines Disabled 3 | . 3 Max in Single Turn 1 | . 1 Machines Sabotaged . | . . Garrisons Compromised . | . . Overloaded Fab Kills . | . . Fab Network Shutdowns . | . . Hacking | -11 -10 --------- Run | Scr Mat Machines Accessed 2 | . 2 Terminals 2 | . 2 Fabricators . | . . Repair Stations . | . . Recycling Units . | . . Scanalyzers . | . . Garrison Access . | . . Total Hacks 9 | . 9 Successful 7 | . 7 Failed 2 | . 2 Catastrophic 1 | . 1 Database Lockouts . | . . Manual . | . . Terminals 9 | . 9 Fabricators . | . . Repair Stations . | . . Recycling Units . | . . Scanalyzers . | . . Garrison Access . | . . Terminal Hacks 7 | . 7 Record 4 | . 4 Unreport Threat 1 | . 1 Recall Assault 1 | . 1 Zone Layout 1 | . 1 Fabricator Hacks . | . . Repair Station Hacks . | . . Recycling Unit Hacks . | . . Scanalyzer . | . . Garrison Access Hacks . | . . Unauthorized Hacks . | . . Terminals . | . . Fabricators . | . . Repair Stations . | . . Recycling Units . | . . Scanalyzers . | . . Garrison Access . | . . Data Cores Recovered . | . . Used . | . . Hacking Detections 2 | . 2 Full Trace Events 2 | . 2 Feedback Events . | . . Feedback Blocked . | . . Robot Schematics Acquired . | . . Robots Built . | . . Matter . | . . Time . | . . Total Robot Build Rating . | . . Part Schematics Acquired . | . . Parts Built . | . . Matter . | . . Time . | . . Total Part Build Rating . | . . Parts Repaired . | . . Time . | . . Parts Recycled . | . . Recycled Matter . | . . Retrieved Matter . | . . Retrieved Components . | . . Parts Scanalyzed . | . . Part Schematics Acquired . | . . Parts Damaged . | . . Bothacking | -11 -10 ------------ Run | Scr Mat Used RIF Installer . | . . Robots Hacked . | . . Non-combat . | . . Combat . | . . Robot Hacks Applied . | . . Relay Couplers Released . | . . Robots Rewired . | . . Allies Hacked . | . . Hacks Repelled . | . . Allies | -11 -10 -------- Run | Scr Mat Total Allies . | . . Largest Group . | . . Highest-Rated Group . | . . Highest-Rated Ally . | . . Total Orders . | . . Ally Attacks . | . . Total Damage . | . . Kills . | . . Allies Corrupted . | . . Allies Melted . | . . Intel | -11 -10 ------- Run | Scr Mat Robot Analysis Total . | . . Derelict Logs Recovered . | . . Drone Launches . | . . Drone Recoveries . | . . Exploration | -11 -10 ------------- Run | Scr Mat Turns Passed 737 | 87 650 Spaces Moved 328 | 50 278 Core 121 | 4 117 Treads 207 | 46 161 Legs . | . . Wheels . | . . Hover . | . . Flight . | . . Fastest Speed 50 | 50 160 Average Speed 206 | 151 216 Slowest Speed 350 | 160 350 Overloaded Moves . | . . Propulsion Burnouts . | . . Robots Hopped . | . . Cave-ins Triggered . | . . Exploration Rate (%) 21 | 5 37 Regions Visited 1 Branch Regions . Pre-discovered Areas . | . . Known Exits Taken . | . . Unknown Exits Taken 1 | 1 . Scrap Searched . | . . Spaces Dug . | . . Terrain Destroyed 58 | . 58 Melee . | . . Projectile . | . . AOE 58 | . 58 Actions | -11 -10 --------- Run | Scr Mat Total 370 | 62 308 Wait . | . . Move 327 | 49 278 Hop . | . . Pick Up 15 | 8 7 Fast Attach . | . . Attach 11 | 5 6 Detach 1 | . 1 Swap . | . . Drop 5 | . 5 Fire 11 | . 11 Melee . | . . Ram . | . . Kick . | . . Crush . | . . Escape Stasis . | . . Rewire . | . . Trap . | . . Miscellaneous . | . . Route ------- -11/Scrapyard -10/Materials History --------- Turn | Location | Event 18 | -11/Scrapyard | Discovered new exit (range 15) 88 | -11/Scrapyard | Entered Materials 278 | -10/Materials | Discovered new exit (range 9) 308 | -10/Materials | Build established: Mutant 377 | -10/Materials | Core integrity fell below 50% 380 | -10/Materials | Core integrity fell below 20% 738 | -10/Materials | Core destroyed Last Messages --------------- 00487_ Structural Scanner crushed. 00488_ Hungry Anomaly eats Wheel. 00490_ Hungry Anomaly eats Aluminum Leg. 00491_ Hungry Anomaly eats Med. Storage Unit. 00492_ Hungry Anomaly eats Signal Interpreter. 00492_ Acquired Terrain Scan Processor. 00499_ Acquired 18 matter. 00504_ Forced to warp away. 00514_ Acquired Med. Storage Unit. 00515_ Dropped Sml. Storage Unit. 00523_ Acquired Sml. Laser. 00528_ Dropped Lgt. Treads. 00574_ Acquired 26 matter. 00647_ Unstable Anomaly suddenly flashes brightly. 00651_ Engulfed by violent ripples tearing at the fabric of space. 00651_ Grenade Launcher destroyed. 00652_ Unstable Anomaly suddenly flashes brightly. 00714_ ALERT: Dispatching additional forces to engage threats. 00718_ Unstable Anomaly suddenly flashes brightly. 00718_ Engulfed by violent ripples tearing at the fabric of space. Map ----- +----------------------------------------------------+ | ???????????????????????????????? | | ???????????????????????????????? | | ???????????????????????????????? | | ???????????????????????????????? | | ?????????#####?????????????????? | | ????????##"""##????????????????? | | ???????##"|||"##???????????????? | | ???????#"" ""#########???????? | | ???????# ## #???????? | | ???????# < ## #???????? | | ???????# ## "" #???????? | | ???????# ## "T #???????? | | ???????## ### "" #???????? | | ########## ##?# #???????? | | # # ^#######+###???????? | | # """ + ^ #???????? | | # """ # ^ #???????? | | # """ + #???????? | | # ##% ###### #???????? | | # """ ##+# #????# ########? | | # """ # # # ? | | # """ # # # """ ""? | | # # # # """ """ | | #######+## # # """ """ | | ??????# ## "" """ # # """ """ | | ??????#@## """ """ + + ! | | ??????# ## """ """ # # | | ??????# ## + # | | ???##?# #############+########## | | #### ## # ##??????#% #?# | | # # ########### """ #?# | | # # + ## """ #?# | | # "" # # ## """ #?# | | # """ # # ## #?#### | | # """ # # ## """ ##### | | # """ + # ## """ # | | # """ # + ## """ | | # # ######### # # | | # # ## """ #### | | # "T" # ## """ #??# # | | # """ # T ## """ #??# % | | # # ## #??# | | ######## #########??## # | | ??# #??# ##########???### | | ??# #??# # ####??# | | ??# #??# # # ??? | | ??# #??# %""" # # "??? | | ###?#### """ # # "??? | | # # """ # % # "??? | | # # """ + # ??? | +----------------------------------------------------+ Best States ------------- Heat Dissipation 25 Energy Generation 10 Energy Capacity 250 Matter Stores 300 Matter Capacity 300 Sight Range 16 Terrain Scan Density 85 Evasion (%) 40 Recoil Reduction 2 Item Schematics ----------------- None Robot Schematics ------------------ None Fabricated ------------ Nothing Alien Tech Used ----------------- None Achievements -------------- None Challenges ------------ None Game ------ Seed SingularityAlloyPod Manual? 0 Play Time 00:08:38 Cumulative 12.5 hours Start 2019.10.31 @ 16:18:40 End 2019.10.31 @ 16:25:03 Sessions 1 Manual Loads 0 Difficulty Rogue Special Mode Halloween2019/Abominations Game No. 55 Rogue 55 Adventurer 0 Explorer 3 Win Type - Total 0 Types 0/0/0/0/0/0/0 Lore% 15 Gallery% 15 Achievement% 12 Wizard Run 0 Options --------- ASCII 0 Keyboard 0 Movement Arrows Keybinds 0 Fullscreen 0 Font 14/Terminus Map View 76x50 Tactical HUD 1 Map Filters NONE Filters NONE Steam 1 RUN: fcf3a0ec-1e15-4b68-8364-89f62b5fda9d